bitfinex-derivatives/quotes_ETHF0:USTF0_20240830
["timestamp","ask_amount","ask_price","bid_price","bid_amount"]
[1724997487805,0.3659,2516.0,2515.8,3.2078]
[1724997488000,0.76334,2516.0,2515.8,3.2078]
[1724997488203,0.39745,2515.9,2515.8,3.2078]
[1724997488606,3.9744,2515.9,2515.8,3.2078]
[1724997488908,3.9744,2515.9,2515.5,3.6053]
[1724997489112,0.39745,2515.9,2515.5,3.6053]
[1724997489308,0.39749,2515.7,2515.5,3.2078]
[1724997489816,0.7292,2515.6,2515.5,3.2078]
[1724997490607,1.12669,2515.6,2515.5,3.2078]
[1724997490811,5.10189,2515.6,2515.5,3.2078]
[1724997491006,0.39751,2515.5,2515.2,7.04535]
[1724997491209,0.77542,2515.5,2515.2,3.2078]
[1724997493814,0.3779,2515.5,2515.2,7.04535]
[1724997494018,0.3779,2515.5,2515.2,6.6478]
[1724997494499,0.3779,2515.5,2515.2,3.44]
[1724997494704,0.3779,2515.5,2515.2,6.6478]
[1724997494903,0.77541,2515.5,2515.2,6.6478]
[1724997495905,0.3779,2515.5,2515.2,6.6478]
[1724997496104,0.3779,2515.5,2515.2,7.04536]
[1724997496512,0.77541,2515.5,2515.2,6.6478]
[1724997497404,0.3779,2515.5,2515.2,7.04536]
[1724997497812,0.77541,2515.5,2515.2,6.6478]
[1724997499914,2.08501764,2515.8,2515.5,0.3975]
[1724997500211,0.39747,2515.8,2515.5,4.3579]
[1724997500409,0.39747,2515.8,2515.5,3.9604]
[1724997501412,2.45471764,2515.9,2515.6,0.39749]
[1724997501714,2.85216764,2515.9,2515.6,0.3552]
[1724997502708,2.45471764,2515.9,2515.6,0.3552]
[1724997503314,0.39747,2515.8,2515.5,3.9604]
[1724997504414,2.48248764,2515.8,2515.5,3.9604]
[1724997504614,0.39747,2515.8,2515.5,3.9604]
[1724997505616,2.85217764,2515.9,2515.5,4.35791]
[1724997506722,0.3697,2515.9,2515.7,0.39748]
[1724997507018,0.3697,2515.9,2515.6,0.78289]
[1724997507208,0.3697,2515.9,2515.6,0.3854]
[1724997508320,2.45471764,2515.9,2515.6,0.3854]
[1724997508527,0.3697,2515.9,2515.6,0.78289]
[1724997509230,0.3697,2515.9,2515.7,0.39748]
[1724997509725,0.3697,2515.9,2515.6,0.78289]
[1724997510126,2.45471764,2515.9,2515.6,0.3854]
[1724997510327,0.3697,2515.9,2515.6,0.3854]
[1724997510533,0.3697,2515.9,2515.6,0.78289]
[1724997511123,2.45471764,2515.9,2515.6,0.78289]
[1724997511312,0.3697,2515.9,2515.6,0.78289]
[1724997511520,0.3697,2515.9,2515.6,0.3854]
[1724997511719,0.39746,2515.8,2515.6,0.3854]
[1724997511925,0.39746,2515.8,2515.2,6.6478]
[1724997511926,2.08501764,2515.8,2515.2,6.6478]
[1724997512130,0.3975,2515.6,2515.2,7.04535]
[1724997512428,2.44211764,2515.7,2515.2,3.2078]
[1724997512614,0.3634,2515.5,2515.2,3.2078]
[1724997513020,0.76091,2515.5,2515.2,3.2078]
[1724997513221,0.3642,2515.4,2515.2,3.2078]
[1724997517429,0.76173,2515.4,2515.2,3.2078]
[1724997520023,0.39754,2515.3,2515.2,3.2078]
[1724997520224,0.75124,2515.3,2515.2,3.2078]
[1724997520428,4.72724,2515.3,2515.2,3.2078]
[1724997521741,0.75124,2515.3,2515.2,3.2078]
[1724997522141,0.39754,2515.3,2515.2,3.2078]
[1724997524332,0.39759,2515.0,2514.9,0.00596338]
[1724997524531,8.72855202,2515.0,2513.9,4.39188954]
[1724997524839,3.83772,2514.2,2513.9,0.7533]
[1724997525044,3.44,2514.2,2513.6,1.03853274]
[1724997525248,3.44,2514.2,2513.5,3.2078]
[1724997525249,0.39779,2513.8,2513.5,3.2078]
[1724997525546,5.91893608,2514.0,2513.5,3.60563]
[1724997525752,0.00596338,2513.9,2513.5,3.2078]
[1724997526129,0.39778,2513.8,2513.5,3.2078]
[1724997526334,0.39778,2513.8,2513.7,1.39245693]
[1724997526739,7.81618,2513.8,2513.7,1.39245693]
[1724997527041,7.81618,2513.8,2513.4,0.00596338]
[1724997527042,0.39783,2513.5,2513.4,0.00596338]
[1724997527435,3.83781,2513.6,2513.4,0.00596338]
[1724997527641,0.3789,2513.7,2513.4,0.00596338]
[1724997530145,0.3529,2513.8,2513.4,0.00596338]
[1724997530338,0.75068,2513.8,2513.4,0.00596338]
[1724997532046,3.44,2513.7,2513.4,0.00596338]
[1724997532236,0.39781,2513.6,2513.4,0.00596338]
[1724997532431,0.39783,2513.5,2513.4,0.00596338]
[1724997532751,4.22423,2513.5,2513.4,0.00596338]
[1724997533043,8.20263,2513.5,2513.4,0.00596338]
[1724997533544,14.20263,2513.5,2513.4,0.00596338]
[1724997533847,18.72708959,2513.5,2513.4,0.00596338]
[1724997534849,12.72708959,2513.5,2513.4,0.00596338]
[1724997535040,18.72708959,2513.5,2513.4,0.00596338]
[1724997535236,12.72708959,2513.5,2513.4,0.00596338]
[1724997535544,18.72708959,2513.5,2513.4,0.00596338]
[1724997535750,0.99461,2513.4,2512.7,44.0078]
[1724997535939,0.39791,2513.0,2512.7,3.2078]
[1724997536142,0.39794,2512.8,2512.7,3.2078]
[1724997536440,0.39794,2512.8,2512.4,40.8]
[1724997536947,0.39796,2512.7,2512.4,40.8]
[1724997537146,0.39795,2512.8,2512.3,0.75871]
[1724997537640,0.39797,2512.6,2512.2,44.56550103]
[1724997537947,0.39796,2512.7,2512.2,44.76373]
[1724997538158,0.39796,2512.7,2512.2,3.96373]
[1724997539343,0.39796,2512.7,2512.2,0.3579]
[1724997539540,3.60576,2512.7,2512.2,0.3579]
[1724997540148,0.39799,2512.5,2512.1,40.8]
[1724997540348,3.60581,2512.4,2511.9,3.574]
[1724997540648,0.39803,2512.3,2511.9,3.574]
[1724997540845,3.60581,2512.4,2511.9,44.374]
[1724997541344,3.60581,2512.4,2511.9,3.574]
[1724997541946,3.83802,2512.3,2511.9,3.574]
[1724997542249,3.83802,2512.3,2511.9,0.3662]
[1724997542652,3.44,2512.3,2511.7,41.1883]
[1724997542838,3.44,2512.1,2511.7,41.1883]
[1724997543042,0.7498,2512.2,2511.8,0.39809]
[1724997543947,4.1898,2512.2,2511.8,0.39809]
[1724997544347,4.1898,2512.2,2511.7,41.58641]
[1724997544653,4.1898,2512.2,2511.7,40.8]
[1724997544857,0.39806,2512.1,2511.7,40.8]
[1724997545346,0.39806,2512.1,2511.6,3.60593]
[1724997547758,3.60586,2512.1,2511.6,0.39813]
[1724997547947,0.3981,2511.8,2511.5,40.8]
[1724997548643,0.3981,2511.8,2511.4,0.3664]
[1724997549254,4.22402,2511.7,2511.4,0.3664]
[1724997549449,3.8259,2511.7,2511.4,0.3664]
[1724997549649,3.8259,2511.7,2511.4,0.76456]
[1724997550953,3.8259,2511.7,2511.4,0.3664]
[1724997551658,3.8259,2511.7,2511.4,0.76456]
[1724997554064,3.44,2511.9,2511.6,0.39812]
[1724997554869,3.44,2511.9,2511.4,0.3664]
[1724997555057,4.5612,2512.0,2511.7,0.3981]
[1724997555258,4.5612,2512.0,2511.8,0.39809]
[1724997555565,4.5612,2512.0,2511.7,0.3981]
[1724997555769,4.95926,2512.0,2511.6,0.39812]
[1724997556060,3.44,2511.9,2511.6,0.39812]
[1724997556265,3.44,2511.9,2511.7,0.39811]
[1724997556564,3.44,2511.9,2511.6,0.39812]
[1724997556764,3.44,2511.9,2511.7,0.39811]
[1724997557168,4.5612,2512.0,2511.8,0.3981]
[1724997557669,4.5612,2512.0,2511.7,0.3981]
[1724997558963,4.95927,2512.0,2511.6,3.60592]
[1724997559674,1.15797,2512.0,2511.6,3.60592]
[1724997559873,3.44,2511.9,2511.6,3.2078]
[1724997560069,0.3981,2511.8,2511.6,3.2078]
[1724997560667,3.44,2511.9,2511.6,3.2078]
[1724997560870,0.3981,2511.8,2511.6,3.2078]
[1724997561682,3.83809,2511.9,2511.6,3.2078]
[1724997562480,0.3981,2511.8,2511.6,3.2078]
[1724997564081,3.83808,2511.9,2511.6,3.2078]
[1724997564982,3.44,2511.7,2511.4,0.3664]
[1724997565182,3.44,2511.7,2511.3,4.34147]
[1724997565483,3.83812,2511.7,2511.3,4.34147]
[1724997565785,0.3693,2511.6,2511.3,4.34147]
[1724997565979,0.76743,2511.6,2511.3,3.9433]
[1724997566174,0.3693,2511.6,2511.3,3.9433]
[1724997566377,0.3805,2511.5,2511.3,4.34148]
[1724997566874,0.3805,2511.5,2511.3,3.2078]
[1724997567885,3.8205,2511.5,2511.3,3.2078]
[1724997568087,4.1886,2511.5,2511.3,3.2078]
[1724997570186,4.1886,2511.5,2511.1,40.8]
[1724997570482,3.44,2511.3,2510.9,3.96023]
[1724997570986,3.44,2511.3,2510.9,3.60603]
[1724997571686,3.44,2511.1,2510.9,3.2078]
[1724997571880,3.96854,2511.0,2510.5,1.16379]
[1724997572087,3.44,2510.8,2510.5,0.7655]
[1724997572278,3.83826,2510.8,2510.5,0.3802]
[1724997572480,7.7676,2511.0,2510.5,0.3802]
[1724997572684,7.7676,2511.0,2510.3,0.78363]
[1724997572685,0.39826,2510.8,2510.3,0.78363]
[1724997572881,0.39826,2510.8,2510.3,1.16383]
[1724997573289,3.83826,2510.8,2510.3,1.16383]
[1724997573491,3.83826,2510.8,2510.4,0.39832]
[1724997573492,3.44,2510.8,2510.4,0.39832]
[1724997573890,3.44,2510.8,2510.3,1.16383]
[1724997574295,3.44,2510.8,2510.4,0.3983]
[1724997574681,3.44,2510.8,2510.5,0.3983]
[1724997574887,7.3924,2511.0,2510.4,3.2078]
[1724997575082,7.3924,2511.0,2510.6,0.39828]
[1724997575992,7.79062,2511.0,2510.5,0.39829]
[1724997576189,0.3811,2510.9,2510.5,0.39829]
[1724997576394,0.3811,2510.9,2510.4,3.60611]
[1724997576395,3.44,2510.7,2510.4,3.60611]
[1724997576889,3.83827,2510.7,2510.3,0.3802]
[1724997577389,3.44,2510.7,2510.3,0.77853]
[1724997577985,3.83827,2510.7,2510.3,0.39833]
[1724997578190,3.83827,2510.7,2510.2,0.77354]
[1724997578390,3.44,2510.7,2510.2,0.3752]
[1724997578591,3.44,2510.7,2510.4,0.39831]
[1724997578799,3.44,2510.7,2510.3,0.39833]
[1724997579289,3.44,2510.7,2510.4,0.39831]
[1724997581986,0.3813,2510.6,2510.4,0.39831]
[1724997582200,0.3544,2510.5,2510.4,0.39831]
[1724997584204,0.3544,2510.5,2510.3,0.39833]
[1724997585199,0.3544,2510.5,2510.4,0.39832]
[1724997585387,0.3813,2510.6,2510.4,0.39832]
[1724997585693,0.3813,2510.6,2510.5,0.3983]
[1724997587197,0.3813,2510.6,2510.4,0.39832]
[1724997587401,3.44,2510.5,2510.2,0.3752]
[1724997587695,3.44,2510.5,2510.2,0.77354]
[1724997587903,3.44,2510.5,2510.3,0.39833]
[1724997590392,0.3813,2510.6,2510.5,0.3983]
[1724997590595,7.9951,2510.9,2510.7,0.39826]
[1724997591291,7.614,2510.9,2510.8,0.39825]
[1724997594418,7.614,2510.9,2510.7,0.39826]
[1724997595203,7.614,2510.9,2510.8,0.39825]
[1724997595403,3.44,2510.9,2510.8,0.39825]
[1724997598198,0.00596338,2511.3,2511.2,0.39819]
[1724997599404,0.00596338,2511.3,2511.2,4.38059]
[1724997599905,0.00596338,2511.3,2511.2,10.38059]
[1724997600326,3.60587,2512.0,2511.2,10.38059]
[1724997600327,2.06821962,2512.2,2511.3,0.99545]
[1724997600611,1.7823,2512.0,2511.5,3.2078]
[1724997600803,1.7823,2512.0,2511.7,0.39811]
[1724997601113,1.7823,2512.0,2511.7,0.3981]
[1724997601308,1.7823,2512.0,2511.8,0.39809]
[1724997601510,1.7823,2512.0,2511.5,3.2078]
[1724997601811,0.00596338,2512.1,2512.0,0.39806]
[1724997602609,0.00596338,2512.1,2511.8,3.2078]
[1724997602915,3.44596338,2512.1,2511.8,3.60589]
[1724997603100,3.44596338,2512.1,2511.8,44.0078]
[1724997603303,3.44,2511.9,2511.8,3.2078]
[1724997603502,3.44596338,2512.1,2511.8,3.2078]
[1724997604107,3.84402338,2512.1,2511.8,3.2078]
[1724997604619,3.44596338,2512.1,2511.8,3.2078]
[1724997605001,0.40401338,2512.1,2511.8,3.2078]
[1724997605211,3.60587,2512.0,2511.5,3.60594]
[1724997605514,3.2078,2512.0,2511.5,3.2078]
[1724997605710,3.2078,2512.0,2511.6,0.39812]
[1724997606208,3.2078,2512.0,2511.7,0.3981]
[1724997606616,3.2078,2512.0,2511.6,0.39812]
[1724997606811,3.60587,2512.0,2511.5,3.60594]
[1724997607012,0.3981,2511.8,2511.3,4.50516]
[1724997607315,0.3981,2511.8,2511.3,0.39816]
[1724997607316,1.0933,2511.7,2511.3,0.39816]
[1724997607910,1.0933,2511.7,2511.4,0.39816]
[1724997608216,0.7234,2511.7,2511.5,0.39813]
[1724997608408,3.5641,2512.0,2511.7,0.39811]
[1724997608709,0.3598,2511.9,2511.6,0.39812]
[1724997609306,0.3598,2511.9,2511.4,6.6478]
[1724997609616,0.3598,2511.9,2511.8,0.3981]
[1724997611712,0.3598,2511.9,2511.8,3.6059]
[1724997612705,0.00596338,2512.1,2512.0,0.39806]
[1724997613619,16.63456338,2512.1,2511.2,3.21376338]
[1724997613917,0.39814,2511.5,2511.2,3.21376338]
[1724997614117,1.1233,2511.4,2511.2,0.00596338]
[1724997614812,1.52147,2511.4,2511.2,0.00596338]
[1724997615118,7.1902,2511.3,2511.2,0.00596338]
[1724997615303,3.60598,2511.3,2511.2,0.00596338]
[1724997615505,7.58838,2511.3,2511.2,0.00596338]
[1724997616013,1.1233,2511.4,2511.2,0.00596338]
[1724997616819,0.7361,2511.4,2511.2,0.00596338]
[1724997618511,7.82058,2511.3,2511.2,0.00596338]
[1724997618906,7.4224,2511.3,2511.2,0.00596338]
[1724997619120,3.9824,2511.3,2511.2,0.00596338]
[1724997619421,1.13427,2511.4,2511.2,0.00596338]
[1724997619422,0.7361,2511.4,2511.2,0.00596338]
[1724997619619,3.83818,2511.3,2511.2,0.00596338]
[1724997619914,11.82535723,2511.3,2510.6,3.2078]
[1724997620115,3.44,2511.1,2510.6,3.2078]
[1724997621507,3.83821,2511.1,2510.6,3.2078]
[1724997621719,0.39822,2511.0,2510.6,3.2078]
[1724997622120,0.3895,2510.9,2510.6,3.2078]
[1724997622414,0.78774,2510.9,2510.6,3.2078]
[1724997622618,4.22774,2510.9,2510.6,3.2078]
[1724997623010,0.3731,2510.8,2510.6,3.2078]
[1724997628613,0.77136,2510.8,2510.4,40.8]
[1724997629323,0.3731,2510.8,2510.4,41.19832]
[1724997629621,0.39827,2510.7,2510.3,3.2078]
[1724997629819,0.39829,2510.6,2510.3,3.2078]
[1724997630026,0.3867,2510.6,2510.3,3.2078]
[1724997630417,0.785,2510.6,2510.3,3.2078]
[1724997633122,0.37906338,2510.8,2510.3,3.2078]
[1724997633322,0.37906338,2510.8,2510.2,0.3623]
[1724997633323,0.00596338,2510.8,2510.6,3.2078]
[1724997633515,0.00596338,2510.8,2510.7,0.76627]
[1724997633718,0.00596338,2510.8,2510.7,4.74947]
[1724997634527,10.8218,2511.5,2511.2,0.39819]
[1724997634716,10.8218,2511.5,2511.3,0.366]
[1724997634717,6.6478,2511.5,2511.3,0.366]
[1724997635123,6.6478,2511.5,2511.0,0.78082]
[1724997635318,3.83818,2511.3,2510.9,0.20270674]
[1724997635519,3.2078,2511.5,2510.8,0.3897]
[1724997635520,3.44,2511.1,2510.8,0.3897]
[1724997635713,0.3781,2511.0,2510.8,0.3897]
[1724997636329,0.3781,2511.0,2510.8,0.78795]
[1724997637223,0.3781,2511.0,2510.8,0.3897]
[1724997637931,0.3781,2511.0,2510.8,0.78795]
[1724997638226,0.3781,2511.0,2510.9,0.39824]
[1724997638836,0.3781,2511.0,2510.8,0.78795]
[1724997639125,0.3781,2511.0,2510.7,0.368]
[1724997640721,0.3781,2511.0,2510.8,0.39825]
[1724997640925,0.3781,2511.0,2510.9,0.39824]
[1724997641120,0.368,2511.2,2510.9,0.39824]
[1724997641327,0.368,2511.2,2510.9,3.2078]
[1724997641523,0.3885,2511.3,2511.1,0.3982]
[1724997642724,0.39819,2511.2,2510.9,3.2078]
[1724997642934,4.22668,2511.3,2510.9,3.2078]
[1724997644029,4.22668,2511.3,2510.9,3.60604]
[1724997644030,3.8285,2511.3,2510.9,3.60604]
[1724997645134,4.22668,2511.3,2510.9,3.60604]
[1724997645334,4.22668,2511.3,2510.9,3.2078]
[1724997645529,4.22668,2511.3,2510.9,3.60604]
[1724997645732,3.8285,2511.3,2511.0,0.39822]
[1724997646438,3.8285,2511.3,2510.9,3.60603]
[1724997646637,3.8285,2511.3,2511.0,0.39822]
[1724997646830,0.39819,2511.2,2510.9,3.2078]
[1724997647140,0.3691,2511.1,2510.9,3.2078]
[1724997647435,0.7436,2511.1,2510.9,3.60604]
[1724997647634,0.7436,2511.1,2510.9,3.2078]
[1724997647830,0.7436,2511.1,2510.8,0.39825]
[1724997648138,0.7436,2511.1,2510.9,0.39824]
[1724997648342,0.7436,2511.1,2510.8,0.39825]
[1724997650432,0.7436,2511.1,2510.9,0.39824]
[1724997652831,0.7436,2511.1,2510.8,0.39825]
[1724997654135,0.7436,2511.1,2510.7,0.76626]
[1724997654332,1.14181,2511.1,2510.7,0.39826]
[1724997654937,0.7436,2511.1,2510.8,0.39825]
[1724997656950,1.14181,2511.1,2510.7,0.39826]
[1724997657441,2.81181962,2511.1,2510.7,0.39826]
[1724997657637,0.7436,2511.1,2510.8,0.39825]
[1724997657836,0.7436,2511.1,2510.9,0.39823]
[1724997658237,2.45671962,2511.3,2510.9,0.20069714]
[1724997658450,2.45671962,2511.3,2511.1,0.3982]
[1724997658947,2.45671962,2511.3,2511.0,4.34971]
[1724997659539,2.45671962,2511.3,2510.7,1.39406275]
[1724997659540,5.89671962,2511.3,2510.7,3.2078]
[1724997659740,0.7321,2511.2,2510.8,0.41702943]
[1724997659941,0.7321,2511.2,2510.7,0.39826]
[1724997660145,0.39822,2511.0,2510.8,0.4170754]
[1724997660342,0.3803,2510.9,2510.6,4.64044843]
[1724997660547,0.3803,2510.9,2510.7,0.81538714]
[1724997660743,0.3803,2510.9,2510.8,0.81536714]
[1724997661049,0.3803,2510.9,2510.8,0.39825]
[1724997661249,0.3803,2510.9,2510.8,0.81529956]
[1724997661838,0.3803,2510.9,2510.8,0.41704956]
[1724997662347,4.3627,2510.9,2510.6,1.03436843]
[1724997662549,3.7994,2510.8,2510.6,1.03436843]
[1724997662742,0.78747,2510.7,2510.6,1.03436843]
[1724997663148,4.77067,2510.7,2510.6,1.03436843]
[1724997665547,0.78747,2510.7,2510.6,1.03436843]
[1724997666552,0.3892,2510.7,2510.6,1.03436843]
[1724997666852,0.3892,2510.7,2510.5,1.55751603]
[1724997667350,0.78747,2510.7,2510.5,0.00596338]
[1724997667953,3.83829,2510.6,2510.5,0.00596338]
[1724997668255,3.44,2510.6,2510.5,0.00596338]
[1724997668458,3.83829,2510.6,2510.5,0.00596338]
[1724997669052,3.83829,2510.6,2509.5,5.07590321]
[1724997669053,21.45614083,2510.6,2509.7,3.60622]
[1724997669242,0.39837,2510.1,2509.7,3.2078]
[1724997669552,0.7582,2510.0,2509.6,45.35839302]
[1724997669756,0.7582,2510.0,2509.7,0.41634396]
[1724997669950,0.7582,2510.0,2509.6,45.35839302]
[1724997670148,0.7582,2510.0,2509.7,0.41613116]
[1724997670343,0.7582,2510.0,2509.6,4.55839302]
[1724997670344,3.44,2509.9,2509.6,4.55839302]
[1724997670857,3.44,2509.9,2509.6,4.15995302]
[1724997671454,3.8384,2509.9,2509.6,4.15995302]
[1724997671651,3.44,2509.9,2509.6,4.15995302]
[1724997671850,0.00597526,2510.1,2509.7,3.2078]
[1724997672157,0.00597526,2510.1,2510.0,0.39838]
[1724997672559,0.00597526,2510.1,2510.0,4.38238]
[1724997674355,0.00597526,2510.1,2510.0,7.59018]
[1724997674956,0.00597526,2510.1,2510.0,8.00610084]
[1724997675462,0.00597526,2510.1,2510.0,54.80610084]
[1724997675862,0.00597526,2510.1,2510.0,54.39018]
[1724997676062,4.38834526,2510.1,2510.0,3.62383868]
[1724997676354,4.38834526,2510.1,2509.3,5.19722579]
[1724997676355,0.39842,2509.8,2509.3,5.19722579]
[1724997676555,3.44,2509.6,2509.4,6.7314751]
[1724997677157,3.44,2509.6,2509.4,7.0871751]
[1724997677554,5.52808113,2509.6,2509.4,1.1131]
[1724997677867,7.61686926,2509.6,2509.4,1.1131]
[1724997678053,4.17686926,2509.6,2509.4,1.1131]
[1724997678358,2.08808113,2509.6,2509.5,11.48867055]
[1724997678558,2.08808113,2509.6,2509.5,11.48866238]
[1724997678865,0.6054846,2509.6,2509.5,19.57188672]
[1724997679056,0.6054846,2509.6,2509.5,60.37188672]
[1724997679257,0.6054846,2509.6,2509.5,58.28866238]
[1724997679459,0.6054846,2509.6,2509.5,52.28866238]
[1724997679756,0.6054846,2509.6,2509.5,50.29608703]
[1724997680163,0.6054846,2509.6,2509.5,44.7848]
[1724997680866,4.5902846,2509.6,2509.4,0.7574]
[1724997681064,0.6054846,2509.6,2509.4,0.7574]
[1724997681266,3.079151,2509.6,2509.4,0.7574]
[1724997681462,3.079151,2509.6,2509.2,41.84161217]
[1724997681463,4.19616,2509.5,2509.2,1.04161217]
[1724997681657,1.96221091,2509.3,2509.1,3.2078]
[1724997681962,5.9286664,2509.3,2508.9,0.7188]
[1724997682161,1.56394781,2509.1,2508.9,0.3618]
[1724997682355,1.96246781,2509.1,2508.9,0.3618]
[1724997682561,1.56394781,2509.0,2508.6,3.2078]
[1724997682758,1.56394781,2509.0,2508.6,3.77249629]
[1724997684171,0.78202,2509.2,2508.6,3.77249629]
[1724997684370,0.78202,2509.2,2508.6,4.17109629]
[1724997685073,0.3835,2509.2,2508.6,4.17109629]
[1724997685669,3.5655,2509.5,2508.9,3.2078]
[1724997685968,3.83849,2509.4,2509.0,0.3624]
[1724997686671,3.83848,2509.4,2509.0,0.3624]
[1724997686866,3.44,2509.4,2509.0,0.3624]
[1724997687068,3.2078,2509.5,2509.0,0.3624]
[1724997687271,3.8222,2509.6,2509.2,0.3985]
[1724997687572,0.3822,2509.6,2509.2,40.8]
[1724997689369,0.3822,2509.6,2509.1,0.78362]
[1724997689563,4.174,2509.7,2509.3,0.39848]
[1724997689772,4.174,2509.7,2509.4,0.3594]
[1724997689977,0.00597526,2510.1,2509.5,6.6478]
[1724997690270,0.00597526,2510.1,2510.0,0.39838]
[1724997690476,0.00597526,2510.1,2509.6,8.37566033]
[1724997690676,0.00597526,2510.1,2509.4,0.3594]
[1724997690677,3.83838,2510.0,2509.4,0.75787]
[1724997690979,0.3576,2509.9,2509.5,0.39846]
[1724997691173,0.3576,2509.9,2509.4,0.75787]
[1724997692283,0.3576,2509.9,2509.5,0.39846]
[1724997692476,0.3576,2509.9,2509.4,0.75787]
[1724997693575,0.3576,2509.9,2509.5,0.39846]
[1724997694073,0.3576,2509.9,2509.7,3.2078]
[1724997695568,0.39841,2509.8,2509.4,0.3594]
[1724997695872,0.39843,2509.7,2509.4,0.3594]
[1724997696374,0.3815,2509.6,2509.4,0.3594]
[1724997697686,0.3576,2509.9,2509.5,0.39846]
[1724997697980,0.7391,2509.9,2509.4,0.3594]
[1724997698276,0.7391,2509.9,2509.4,0.75787]
[1724997699179,0.7391,2509.9,2509.5,0.39846]
[1724997700376,0.7391,2509.9,2509.4,0.75787]
[1724997701271,1.13751,2509.9,2509.4,0.3594]
[1724997701484,0.39842,2509.8,2509.4,0.3594]
[1724997701669,0.39844,2509.6,2509.3,3.2078]
[1724997701869,0.3588,2509.5,2509.3,3.2078]
[1724997702074,0.727,2509.5,2509.3,3.2078]
[1724997704474,2.29094781,2509.5,2509.3,3.2078]
[1724997705073,2.29094781,2509.5,2509.1,1.16201]
[1724997705074,1.56394781,2509.4,2509.1,1.16201]
[1724997705274,1.94024781,2509.4,2509.1,1.16201]
[1724997706877,1.94024781,2509.4,2509.2,0.39851]
[1724997707383,1.56394781,2509.4,2509.2,0.39851]
[1724997712086,1.56394781,2509.5,2509.3,0.39849]
[1724997712289,1.56394781,2509.5,2509.3,0.78249]
[1724997712479,1.56394781,2509.4,2509.1,1.16202]
[1724997712685,1.56394781,2509.4,2509.1,0.7635]
[1724997712686,1.56394781,2509.3,2509.1,0.7635]
[1724997712889,1.56394781,2509.2,2508.9,3.2078]
[1724997713187,1.56551147,2509.1,2508.9,3.2078]
[1724997715085,0.3652,2509.0,2508.9,3.2078]
[1724997715284,0.3652,2509.0,2508.9,3.62398288]
[1724997717683,0.3652,2509.0,2508.7,41.5442]
[1724997717684,7.4256,2509.0,2508.7,1.04274827]
[1724997717879,0.39856,2508.9,2508.5,0.3567]
[1724997718079,1.56536258,2508.7,2508.6,0.41621831]
[1724997718493,1.56536258,2508.7,2508.5,0.3567]
[1724997718986,5.9287664,2508.6,2508.2,3.2078]
[1724997719187,1.56512246,2508.4,2508.2,3.2078]
[1724997719385,5.00512246,2508.4,2508.2,3.2078]
[1724997719789,5.00512246,2508.4,2508.2,3.60646]
[1724997719988,5.00512246,2508.4,2508.2,3.2078]
[1724997720695,5.40376246,2508.4,2508.0,0.7367]
[1724997720887,1.56512246,2508.2,2508.0,0.38]
[1724997721393,5.00512246,2508.1,2507.7,3.2078]
[1724997721593,3.44,2508.1,2507.8,0.41704]
[1724997721790,3.44,2508.1,2507.7,3.5947]
[1724997722006,3.44,2508.1,2507.8,0.41711207]
[1724997722188,3.44,2507.9,2507.7,3.2078]
[1724997722595,0.3885,2507.8,2507.7,3.2078]
[1724997723097,4.3765,2507.8,2507.7,3.2078]
[1724997723793,3.44,2508.1,2507.7,7.59454]
[1724997723990,3.44,2508.1,2507.8,0.3817]
[1724997724391,2.35219246,2508.2,2507.8,0.3817]
[1724997724392,3.44,2507.9,2507.8,0.3817]
[1724997725097,7.4272,2507.9,2507.7,3.2078]
[1724997725303,3.44,2507.9,2507.7,3.2078]
[1724997725498,7.82593,2507.9,2507.7,3.2078]
[1724997725690,4.3756,2507.8,2507.4,0.39879]
[1724997725888,3.44,2507.6,2507.4,0.39879]
[1724997726091,3.44,2507.6,2507.5,3.2078]
[1724997726392,3.44,2507.8,2507.5,3.2078]
[1724997726592,3.44,2507.8,2507.6,0.39875]
[1724997726783,3.44,2507.8,2507.7,0.39875]
[1724997726984,3.44,2508.0,2507.7,0.39875]
[1724997727191,3.44,2508.0,2507.8,0.7449]
[1724997727392,7.4272,2508.0,2507.5,3.60657]
[1724997727599,3.44,2507.7,2507.5,3.60657]
[1724997728097,3.44,2507.7,2507.6,0.39876]
[1724997728599,3.44,2507.7,2507.5,3.60657]
[1724997728794,3.44,2507.7,2507.6,0.39876]
[1724997729003,3.44,2507.7,2507.5,3.60657]
[1724997729598,3.44,2507.7,2507.5,3.2078]
[1724997729799,3.44,2507.7,2507.5,3.60658]
[1724997730096,3.44,2507.7,2507.5,3.2078]
[1724997730406,3.44,2507.7,2507.6,0.39876]
[1724997730597,3.44,2507.9,2507.6,0.39876]
[1724997730898,3.44,2507.9,2507.7,0.3726]
[1724997731299,3.44,2507.9,2507.7,0.77134]
[1724997731501,3.44,2507.9,2507.8,0.75033]
[1724997731892,3.44,2507.9,2507.7,0.3726]
[1724997732601,3.83873,2507.9,2507.5,3.2078]
[1724997732797,3.44,2507.6,2507.3,0.7335]
[1724997732994,0.3581,2507.5,2507.3,0.7335]
[1724997733693,0.3581,2507.5,2507.2,3.2078]
[1724997733694,4.3461,2507.5,2507.2,3.2078]
[1724997733894,0.3581,2507.5,2507.2,0.3786]
[1724997734093,3.44,2507.6,2507.3,3.6066]
[1724997734300,3.44,2507.6,2507.4,0.3549]
[1724997736004,3.7981,2507.8,2507.4,0.75369]
[1724997736206,3.7981,2507.8,2507.4,0.3549]
[1724997737298,0.7489,2508.0,2507.4,0.3549]
[1724997737299,4.1889,2508.0,2507.5,0.75827]
[1724997737504,4.1889,2508.0,2507.6,0.3653]
[1724997737902,3.44,2507.8,2507.6,0.3653]